Cogmind - Beta 11.1 @@@ ROGUE MODE // 2022.05.01 @ 19:56:29 Player: Olga Result: Self-destructed Performance ------------- Evolutions (1) 500 Regions Visited (2) 400 Robots Destroyed (2) 10 Value Destroyed (91) 91 Prototype IDs (0) 0 Alien Tech Used (0) 0 Bonus (200) 200 TOTAL SCORE: 1201 Bonus ------- Pacifist 200 Cogmind --------- Core Integrity 272/400 Matter 217/300 Energy 52/100 System Corruption 0% Temperature Cool (0) Movement Flying (32) Location -9/Materials Parts ------- > --- POWER (1) -------- (None) > --- PROPULSION (2) --- VTOL Module VTOL Module > --- UTILITY (4) ------ Sensor Array Propulsion Shielding Weapon Shielding Light Armor Plating > --- WEAPON (2) ------- Mini Grenade Launcher Mini Grenade Launcher > --- INVENTORY (5) ---- Ion Engine VTOL Module VTOL Module Light Armor Plating Mini Grenade Launcher Peak State ------------ > --- POWER ------------ (None) > --- PROPULSION ------- VTOL Module VTOL Module > --- UTILITY ---------- Sensor Array Propulsion Shielding Weapon Shielding Light Armor Plating > --- WEAPON ----------- Mini Grenade Launcher Mini Grenade Launcher > --- INVENTORY -------- VTOL Module VTOL Module VTOL Module Mini Grenade Launcher Mini Grenade Launcher [Rating: 13] Favorites ----------- Power None Propulsion VTOL Module Flight Unit VTOL Module Utility Propulsion Shielding Device Sensor Array Protection Propulsion Shielding Weapon Mini Grenade Launcher Ballistic Gun Assault Rifle Launcher Mini Grenade Launcher Build | -11 -10 -9 ------- Run | Scr Mat Mat Slots Evolved 2 | . . 2 Power . | . . . Propulsion . | . . . Utility 2 | . . 2 Weapon . | . . . Parts Attached 13 | 1 1 11 Power . | . . . Engine . | . . . Core . | . . . Reactor . | . . . Propulsion 4 | . . 4 Treads . | . . . Leg . | . . . Wheel . | . . . Hover . | . . . Flight 4 | . . 4 Utility 5 | . 1 4 Device 1 | . . 1 Storage . | . . . Processor . | . . . Hackware . | . . . Protection 4 | . 1 3 Artifact . | . . . Weapon 4 | 1 . 3 Energy Gun . | . . . Energy Cannon . | . . . Ballistic Gun 1 | 1 . . Ballistic Cannon . | . . . Launcher 3 | . . 3 Special Weapon . | . . . Impact Weapon . | . . . Slashing Weapon . | . . . Piercing Weapon . | . . . Special Melee Weapon . | . . . Unidentified Prototypes . | . . . Parts Lost 1 | . . 1 Power . | . . . Propulsion 1 | . . 1 Utility . | . . . Weapon . | . . . Highest Loss Streak 1 | . . 1 To Critical Strikes . | . . . Average Slot Usage (%) 56 | . 23 67 Flight 11 | . . 15 Device 5 | . . 7 Protection 20 | . 9 24 Ballistic Gun 4 | . 14 1 Launcher 14 | . . 19 Naked Turns . | . . . Heaviest Build 8 | 2 3 8 Greatest Support 8 | 3 3 8 Greatest Overweight (x) 1 | . . 1 Average Overweight (x) . | . . . Largest Inventory Capacity 5 | 5 5 5 Average Capacity 5 | 5 5 5 Most Carried 5 | 4 5 5 Average Carried 4 | 4 4 4 Final Capacity 5 | 5 5 5 Final Carried 5 | 4 5 5 Class Distribution -------------------- 72% | Sprinter 27% | Mutant Dominant Class ---------------- Mutant | -10/Materials Sprinter | -9/Materials Resources | -11 -10 -9 ----------- Run | Scr Mat Mat Matter Collected 268 | 210 . 58 Remotely . | . . . Salvage Created 65 | . . 65 Parts 3 | . . 3 Haulers Intercepted . | . . . Recyclers Shooed . | . . . Parts Field Recycled . | . . . Retrieved Matter . | . . . Parts Self-Destructed . | . . . Prevented . | . . . Kills | -11 -10 -9 ------- Run | Scr Mat Mat Combat Hostiles Destroyed 2 | . . 2 AOE 2 | . . 2 Classes Destroyed 1 | . . 1 Grunt 2 | . . 2 Best Kill Streak 2 | . . 2 Combat Bots Only 2 | . . 2 Max Kills in Single Turn 1 | . . 1 Gunslinging . | . . . Exploded 1 | . . 1 Melee . | . . . Uniques/NPCs Destroyed . | . . . Combat | -11 -10 -9 -------- Run | Scr Mat Mat Damage Taken 388 | . . 388 Core 128 | . . 128 Absorbed by Shields . | . . . Redirected to Shielding 42 | . . 42 Core Remaining (%) 100 | 100 100 . Volleys Fired 2 | . . 2 Largest 2 | . . 2 Hottest 50 | . . 50 Shots Fired 4 | . . 4 Gun 2 | . . 2 Cannon . | . . . Launcher 2 | . . 2 Special . | . . . Kinetic 2 | . . 2 Thermal . | . . . Explosive 2 | . . 2 Electromagnetic . | . . . Robot Hit Streak 2 | . . 2 Robot Miss Streak . | . . . Penetration Max . | . . . Secondary Targets . | . . . Shots Hit Robots 2 | . . 2 Core Hits 5 | . . 5 Critical Kills . | . . . Critical Parts Destroyed . | . . . Critical Strikes . | . . . Melee Attacks . | . . . Impact . | . . . Slashing . | . . . Piercing . | . . . Sneak Attacks . | . . . Combat Hostiles . | . . . Follow-up Attacks . | . . . Damage Inflicted 95 | . . 95 Guns 10 | . . 10 Cannons . | . . . Explosions 85 | . . 85 Melee . | . . . Ramming . | . . . Kinetic 10 | . . 10 Thermal . | . . . Explosive 85 | . . 85 Electromagnetic . | . . . Impact . | . . . Slashing . | . . . Piercing . | . . . Highest Corruption . | . . . Average Corruption . | . . . Corruption Purged . | . . . Corruption Blocked . | . . . Overload Shots . | . . . Overflow Damage . | . . . Projectiles . | . . . Explosions . | . . . Melee . | . . . Knockbacks . | . . . Impact . | . . . Kinetic . | . . . Secondary . | . . . Self-Inflicted Damage 23 | . . 23 Shots 1 | . . 1 Rammed . | . . . Targets Rammed . | . . . Kicked . | . . . Crushed . | . . . Highest Temperature 2 | . . 2 Average Temperature 2 | . . 2 Received Heat Transfer 165 | . . 165 Siege Activations . | . . . Robots Corrupted . | . . . Combat Hostiles . | . . . Parts Fried . | . . . Impact Corruptions . | . . . Robots Melted . | . . . Combat Hostiles . | . . . Parts Melted . | . . . Heat Transferred . | . . . Parts Sabotaged . | . . . Parts Stolen . | . . . Parts Stripped . | . . . Power Chain Reactions . | . . . Missiles Intercepted . | . . . Alert | -11 -10 -9 ------- Run | Scr Mat Mat Peak Influence 316 | . 10 316 Initial 3 | . . 3 Average 143 | . 6 189 Maximum Alert Level 1 | . . 1 Low Security (%) 61 | 100 100 47 Level 1 38 | . . 52 Level 2 . | . . . Level 3 . | . . . Level 4 . | . . . Level 5 . | . . . High Security . | . . . Max Security . | . . . Squads Dispatched 5 | . . 5 Investigation 3 | . . 3 Extermination . | . . . Reinforcement 2 | . . 2 Assault . | . . . Garrison . | . . . Intercept . | . . . Searches Triggered . | . . . Construction Impeded . | . . . Haulers Reinforced . | . . . Active Scanning Responses . | . . . Cargo Convoy Interrupts . | . . . Stealth | -11 -10 -9 --------- Run | Scr Mat Mat Distress Signals 3 | . . 3 Communications Jammed . | . . . Distress Signals . | . . . Times Spotted 32 | . . 32 Peak Tracking Total 25 | . . 25 Tactical Retreats 3 | . . 3 Traps | -11 -10 -9 ------- Run | Scr Mat Mat Traps Triggered 1 | . . 1 Indirectly . | . . . Trap Hack Attempts . | . . . Triggered . | . . . Disarmed . | . . . Reprogrammed . | . . . Reused . | . . . Traps Extracted . | . . . Installed . | . . . Triggered . | . . . Machines | -11 -10 -9 ---------- Run | Scr Mat Mat Machines Disabled 1 | . . 1 Max in Single Turn 1 | . . 1 Machines Sabotaged . | . . . Garrisons Compromised . | . . . Overloaded Fab Kills . | . . . Hacking | -11 -10 -9 --------- Run | Scr Mat Mat Machines Accessed 5 | . 2 3 Terminals 5 | . 2 3 Fabricators . | . . . Repair Stations . | . . . Recycling Units . | . . . Scanalyzers . | . . . Garrison Access . | . . . Total Hacks 13 | . 5 8 Successful 3 | . 3 . Failed 10 | . 2 8 Catastrophic 5 | . 2 3 Database Lockouts . | . . . Manual 10 | . 5 5 Terminals 13 | . 5 8 Fabricators . | . . . Repair Stations . | . . . Recycling Units . | . . . Scanalyzers . | . . . Garrison Access . | . . . Terminal Hacks 1 | . 1 . Terminal Index 1 | . 1 . Fabricator Hacks . | . . . Repair Station Hacks . | . . . Recycling Unit Hacks . | . . . Scanalyzer . | . . . Garrison Access Hacks . | . . . Unauthorized Hacks 2 | . 2 . Terminals 2 | . 2 . Botnet 2 | . 2 . Fabricators . | . . . Repair Stations . | . . . Recycling Units . | . . . Scanalyzers . | . . . Garrison Access . | . . . Data Cores Recovered . | . . . Used . | . . . Hacking Detections 5 | . 2 3 Full Trace Events 3 | . . 3 Feedback Events . | . . . Feedback Blocked . | . . . Robot Schematics Acquired . | . . . Robots Built . | . . . Authchips . | . . . Time . | . . . Total Robot Build Rating . | . . . Part Schematics Acquired . | . . . Parts Built . | . . . Authchips . | . . . Time . | . . . Total Part Build Rating . | . . . Parts Repaired . | . . . Time . | . . . Parts Recycled . | . . . Recycled Matter . | . . . Retrieved Matter . | . . . Retrieved Components . | . . . Parts Scanalyzed . | . . . Part Schematics Acquired . | . . . Parts Damaged . | . . . Bothacking | -11 -10 -9 ------------ Run | Scr Mat Mat Used RIF Installer . | . . . Robots Hacked . | . . . Non-combat . | . . . Combat . | . . . Robot Hacks Applied . | . . . Relay Couplers Released . | . . . Fabnet Peak Effective % . | . . . Robots Rewired . | . . . Allies Hacked . | . . . Hacks Repelled . | . . . Allies | -11 -10 -9 -------- Run | Scr Mat Mat Total Allies . | . . . Largest Group . | . . . Highest-Rated Group . | . . . Highest-Rated Ally . | . . . Total Orders . | . . . Ally Attacks . | . . . Total Damage . | . . . Kills . | . . . Allies Corrupted . | . . . Allies Melted . | . . . Intel | -11 -10 -9 ------- Run | Scr Mat Mat Robot Analysis Total . | . . . Derelict Logs Recovered . | . . . Drone Launches . | . . . Drone Recoveries . | . . . Exploration | -11 -10 -9 ------------- Run | Scr Mat Mat Turns Passed 254 | 2 62 190 Spaces Moved 552 | 3 119 430 Core 203 | 3 119 81 Treads . | . . . Legs . | . . . Wheels . | . . . Hover . | . . . Flight 349 | . . 349 Fastest Speed 32 | 50 50 32 Average Speed 38 | 50 50 35 Slowest Speed 100 | 50 50 100 Overloaded Moves . | . . . Propulsion Burnouts . | . . . Robots Hopped 17 | . . 17 Cave-ins Triggered . | . . . Exploration Rate (%) 24 | 2 31 40 Regions Visited 2 Branch Regions . Pre-discovered Areas . | . . . Known Exits Taken . | . . . Unknown Exits Taken 2 | 1 1 . Scrap Searched . | . . . Spaces Dug . | . . . Terrain Destroyed 37 | . . 37 Melee . | . . . Projectile . | . . . AOE 37 | . . 37 Terrain Rammed . | . . . Walls Destroyed . | . . . Machines Disabled . | . . . Actions | -11 -10 -9 --------- Run | Scr Mat Mat Total 569 | 3 120 446 Wait 3 | . . 3 Move 517 | 2 118 397 Hop 16 | . . 16 Pick Up 9 | . 1 8 Fast Attach 7 | . 1 6 Attach 4 | 1 . 3 Detach 1 | . . 1 Swap 2 | . . 2 Drop 8 | . . 8 Fire 2 | . . 2 Melee . | . . . Ram . | . . . Kick . | . . . Crush . | . . . Escape Stasis . | . . . Rewire . | . . . Trap . | . . . Miscellaneous . | . . . Route ------- -11/Scrapyard -10/Materials -9/Materials History --------- Turn | Location | Event 1 | -11/Scrapyard | Released all parts (6) 2 | -11/Scrapyard | Discovered new exit (range 2) 3 | -11/Scrapyard | Entered Materials 60 | -10/Materials | Discovered new exit (range 11) 65 | -10/Materials | Entered another Materials area 65 | -9/Materials | Evolved 2 slots: Utility x2 255 | -9/Materials | Self-destructed Last Messages --------------- 00155_ Acquired Lgt. Armor Plating. 00158_ Dropped Mni. Grenade Launcher. 00158_ O-16 Technician suffers critical hit (Burn). 00159_ Acquired Lgt. Armor Plating. 00161_ VTOL Module destroyed. 00165_ Connecting with Terminal... 00165_ ALERT: Suspicious activity at Terminal M012. Dispatching Investigation squad. 00167_ Acquired 58 matter. 00179_ K-01 Serf collects debris. 00180_ T-07 Excavator is excavating. 00182_ U-05 Engineer lays Concrete. 00182_ Triggered Alarm Trap. 00182_ An alarm sounds. 00182_ ALERT: Alarm triggered, dispatching investigation squad. 00191_ Acquired Ion Engine. 00207_ Dropped VTOL Module. 00219_ K-01 Serf collects debris. 00219_ W-16 Scout sends out distress signal. 00248_ Connecting with Terminal... Map ----- +----------------------------------------------------+ | ???????????????????????????????????????????? | | ???????????????????????????????????????????? | | ???????????????????????????????????????????? | | ???????????????????????????????????????????? | | ???????????????????????????????????????????? | | ???????????????????????????????????????????? | | ???????????????????????????????????????????? | | ???????????????????????????????????????????? | | ???????????????????????????????????????????? | | ???????????????????????????????????????????? | | ???????????????????????????????????????????? | | ???????????????????????????????????????????? | | ???????????????????????????????????????????? | | ???????????????????????????????????????????? | | ???????????????????????????????????????????? | | ???????????????????????????????????????????? | | ???????????????????????????? #?????????????? | | ????????????????????#?????? #?????????????? | | ????????????????????# """"u #?????????????? | | ????????????????????# """" #?????????????? | | ????????????????????# #?????????????? | | ????????????????????# """" #?????????????? | | ????????????######??# """" #?????????????? | | ????????????# #??? """" #?????????????? | | ????????????# #????? ???????????????? | | ????????????# ########@########+#???????? | | ??????#?????# ## k #??????? | | ??????? ?# ## #??????? | | ???????# ## ## #??????? | | ???????# ## ## ###############??????? | | ???????# ## ## #????????????????????? | | ??????## ## ## s #????????????????????? | | ??????# ###+### #????????????????????? | | ??????# s #????????????????????? | | ??????+ s +????????????????????? | | ??????# #????????????????????? | | ??????# ###+### #????????????????????? | | ??????## #?# # #????????????????????? | | ???????# #?# ] # #????????????????????? | | ???????# #?#[ # #????????????????????? | | ???????# ### # ????????????????????? | | ######## + + ???????????????????? | | ### "" # ??????????????????? | | +####### #?# T" ####+###?????????????????? | | ?????##+##?# "" #????????????????????????? | | " ???? ?# #????????????????????????? | | " #? ######????????????????????????? | | " # #?????????????????????????????? | | # """ """ #?????????????????????????????? | | ! # """ """ #?????????????????????????????? | +----------------------------------------------------+ Best States ------------- Heat Dissipation 28 Energy Generation 5 Energy Capacity 100 Matter Stores 300 Matter Capacity 300 Sight Range 16 Robot Scan Range 14 Terrain Scan Density 10 Armor Coverage 150 Propulsion Shielding 33 Weapon Shielding 33 Evasion (%) 63 Item Schematics ----------------- None Robot Schematics ------------------ None Fabricated ------------ Nothing Alien Tech Used ----------------- None Achievements -------------- None Challenges ------------ None Game ------ Seed SupercompositeThermalSword Manual? 0 Play Time 00:07:50 Cumulative 145.5 hours Start 2022.05.01 @ 19:50:16 End 2022.05.01 @ 19:56:29 Sessions 1 Manual Loads 0 Difficulty Rogue Special Mode None Game No. 213 Rogue 212 Adventurer 0 Explorer 1 Win Type - Total 6 Types 6/0/0/0/0/0/0/0/0 Lore% 60 Gallery% 62 Achievement% 50 Wizard Run 0 Options --------- ASCII 1 Keyboard 0 Movement Vi Keybinds 0 Fullscreen 1 Font 18/SmallcapsGlow Map View 76x50 Tactical HUD 1 Map Filters NONE Filters NONE Steam 1 RUN: 1d31f751-8dba-4821-a6f3-8749ecaeb460